bitfinex-derivatives/quotes_ETHF0:USTF0_20260113
["timestamp","ask_amount","ask_price","bid_price","bid_amount"]
[1768331594721,1.04502184,3196.4,3195.4,0.29212212]
[1768331594923,0.0046938,3196.7,3195.7,0.13557212]
[1768331595309,0.0046938,3196.7,3195.8,1.04502184]
[1768331595515,0.0046938,3196.7,3195.8,1.18059396]
[1768331595721,0.0046938,3196.7,3195.9,0.13557212]
[1768331602324,1.04502184,3196.4,3195.7,0.15653]
[1768331603217,1.04502184,3196.4,3195.5,0.13418349]
[1768331603218,1.04502184,3196.2,3195.5,0.13418349]
[1768331603523,1.04502184,3196.4,3195.5,0.13418349]
[1768331604420,1.04502184,3196.6,3195.5,0.13418349]
[1768331605726,1.04502184,3196.6,3195.6,0.13418349]
[1768331606324,1.04502184,3196.6,3195.7,0.13418349]
[1768331606824,0.0046938,3196.7,3195.9,0.13418349]
[1768331608122,0.0046938,3196.7,3196.0,0.15652]
[1768331608327,0.00220411,3197.0,3196.3,0.13418349]
[1768331608515,1.04502184,3197.3,3196.3,0.13418349]
[1768331609017,1.04502184,3197.6,3196.7,0.13418349]
[1768331609422,1.04502184,3197.4,3196.7,0.13418349]
[1768331610428,0.0046938,3197.5,3196.7,0.13418349]
[1768331611028,0.0046938,3197.5,3196.8,0.0046938]
[1768331613519,1.04502184,3197.3,3196.8,0.0046938]
[1768331614429,0.00336499,3197.6,3196.9,1.04502184]
[1768331614732,0.1564,3198.4,3197.3,1.17920533]
[1768331614733,3.131,3198.3,3197.3,1.17920533]
[1768331615024,3.131,3198.3,3197.4,0.13499784]
[1768331615230,1.04502184,3198.2,3197.4,0.13499784]
[1768331615427,3.131,3198.3,3197.4,0.13499784]
[1768331615733,0.00378563,3198.3,3197.4,0.13499784]
[1768331622835,1.366,3198.2,3197.4,0.13499784]
[1768331624124,2.41024584,3198.2,3197.3,0.15645]
[1768331624631,1.04424584,3197.9,3197.0,0.13499784]
[1768331624823,1.04424584,3197.9,3196.8,0.0046938]
[1768331630133,1.365,3197.9,3197.1,0.13499784]
[1768331630332,0.00378563,3198.3,3197.1,0.13499784]
[1768331630536,1.365,3198.2,3197.1,0.13499784]
[1768331632842,2.40924584,3198.2,3197.0,0.15647]
[1768331637843,0.0046938,3197.9,3197.0,0.15647]
[1768331640641,0.0046938,3197.9,3197.1,0.13499784]
[1768331641443,1.36778563,3198.3,3197.3,0.13499784]
[1768331642842,1.36778563,3198.3,3197.2,0.15646]
[1768331643136,1.04424584,3198.2,3197.2,0.15646]
[1768331644549,1.36778563,3198.3,3196.9,0.13499784]
[1768331644846,1.04424584,3197.5,3196.6,0.15649]
[1768331645035,1.36778563,3198.3,3196.6,0.15649]
[1768331645036,1.04424584,3197.8,3196.6,0.15649]
[1768331646047,1.04424584,3197.8,3196.9,0.0046938]
[1768331649154,1.364,3197.7,3196.9,0.0046938]
[1768331658566,1.364,3197.7,3196.5,0.13499784]
[1768331658759,1.04424584,3197.5,3196.5,0.13499784]
[1768331667192,1.04424584,3197.5,3196.2,0.15651]
[1768331667892,1.04424584,3197.5,3196.2,0.30074763]
[1768331669089,1.20069584,3197.5,3195.7,0.30076763]
[1768331669293,1.04424584,3197.2,3195.8,0.30076763]
[1768331669490,1.20069584,3197.5,3195.9,0.14423763]
[1768331670494,0.15645,3197.5,3195.9,0.14423763]
[1768331670694,5.53624584,3197.4,3195.9,0.14423763]
[1768331670896,1.04424584,3197.1,3195.9,0.14423763]
[1768331671298,1.04424584,3196.8,3195.8,0.15653]
[1768331677400,1.04540947,3196.4,3195.8,0.15653]
[1768331677892,1.04540947,3196.2,3195.5,0.14423763]
[1768331678094,1.04540947,3196.0,3195.3,0.00303703]
[1768331678287,1.04908249,3196.0,3195.3,0.00303703]
[1768331678993,1.04540947,3195.8,3195.3,0.13952802]
[1768331679197,1.04908249,3196.0,3195.3,0.1293101]
[1768331679990,1.04908249,3196.0,3194.9,1.04540947]
[1768331680196,1.04540947,3195.8,3194.9,0.00314107]
[1768331680388,1.04540947,3195.6,3194.9,0.00314107]
[1768331683698,0.00367302,3196.0,3194.9,0.00314107]
[1768331683906,1.04540947,3195.9,3194.9,0.00314107]
[1768331687801,1.04540947,3195.7,3194.9,0.00314107]
[1768331688704,0.00367302,3196.0,3194.9,0.00314107]
[1768331688903,1.04540947,3195.8,3194.9,0.00314107]
[1768331689301,1.04540947,3195.6,3194.9,0.00314107]
[1768331692205,1.04540947,3195.8,3194.9,0.00314107]
[1768331694810,0.00367302,3196.0,3195.1,1.04540947]
[1768331695011,1.36467302,3196.0,3195.2,0.13649099]
[1768331695212,0.00367302,3196.0,3195.2,0.13649099]
[1768331696412,0.00367302,3196.0,3195.2,1.18190046]
[1768331696610,0.00367302,3196.0,3195.2,0.13649099]
[1768331698306,0.00367302,3196.0,3195.2,1.18190046]
[1768331698915,0.00367302,3196.0,3195.3,0.13649099]
[1768331700715,1e-08,3196.2,3195.9,0.13649099]
[1768331700919,1.04540947,3196.9,3195.9,0.13649099]
[1768331701414,1.36,3196.8,3195.9,0.13649099]
[1768331701611,1.04540947,3196.5,3195.5,0.15654]
[1768331701812,1.04540947,3195.7,3195.3,0.0046938]
[1768331702018,1.04540947,3195.7,3194.7,0.13649099]
[1768331703121,1.04540947,3195.9,3194.9,0.13963206]
[1768331704216,0.0046938,3196.3,3195.2,1.18190046]
[1768331704410,1.36,3196.2,3195.4,1.04540947]
[1768331704818,0.0046938,3196.3,3195.4,1.04540947]
[1768331705017,0.0046938,3196.3,3195.7,1.04540947]
[1768331705316,0.0046938,3196.3,3195.7,1.1873366]
[1768331705612,2.40884631,3196.8,3195.8,0.14192713]
[1768331705814,2.40884631,3196.8,3195.7,1.05010327]
[1768331705815,1.04540947,3196.4,3195.7,0.0046938]
[1768331706012,1.04540947,3196.2,3195.7,0.0046938]
[1768331706316,1.04540947,3196.2,3195.5,0.15654]
[1768331706711,1.04540947,3196.4,3195.5,0.15654]
[1768331707814,0.0046938,3196.3,3195.5,0.15654]
[1768331708511,1.04540947,3196.0,3195.1,0.14192713]
[1768331709313,0.0046938,3196.3,3195.1,1.1873366]
[1768331709517,1.04540947,3196.0,3195.1,0.14192713]
[1768331711808,1.04540947,3196.2,3195.1,0.14192713]
[1768331712924,0.0046938,3196.3,3195.3,0.14192713]
[1768331713129,1.3636938,3196.3,3195.3,0.14192713]
[1768331713315,1.04540947,3196.2,3195.3,0.14192713]
[1768331713517,1.04540947,3196.0,3195.1,0.15656]
[1768331714415,1.04540947,3195.8,3195.1,0.15656]
[1768331714819,1.3636938,3196.3,3195.1,0.29848713]
[1768331715026,1.04540947,3196.1,3195.2,0.14192713]
[1768331715419,1.359,3196.2,3195.2,1.1873366]
[1768331715618,0.0046938,3196.3,3195.6,1.04540947]
[1768331716122,0.0046938,3196.3,3195.7,0.1413538]
[1768331718022,0.00343684,3196.8,3195.9,0.1413538]
[1768331718422,1.04540947,3196.7,3195.9,0.1413538]
[1768331719232,0.00343684,3196.8,3195.9,0.1413538]
[1768331719427,0.00343684,3196.8,3195.9,1.18676327]
[1768331719723,0.00343684,3196.8,3195.9,0.1413538]
[1768331720719,1.04540947,3196.7,3195.7,0.1612238]
[1768331721118,1.04540947,3196.7,3195.7,0.3025776]
[1768331723136,1.04540947,3196.5,3195.7,0.3025776]
[1768331723436,1.04540947,3196.3,3195.7,0.1612238]
[1768331723826,1.04540947,3195.8,3195.1,0.15656]
[1768331724036,1.04540947,3196.0,3195.1,0.15656]
[1768331727537,1.04540947,3196.0,3195.1,0.2979138]
[1768331728629,1.04540947,3196.2,3195.2,0.1413538]
[1768331728832,1.358,3196.2,3195.3,0.1413538]
[1768331729240,1.04540947,3196.4,3195.3,0.1413538]
[1768331729438,1.358,3196.3,3195.3,0.1413538]
[1768331730238,1.04540947,3196.2,3195.3,0.1413538]
[1768331730436,1.358,3196.3,3195.3,0.1413538]
[1768331731131,1.04540947,3196.2,3195.3,0.1413538]
[1768331731334,1.04540947,3196.0,3195.3,0.1413538]
[1768331731936,1.04540947,3196.2,3195.3,0.1413538]
[1768331732845,0.00343684,3196.8,3195.5,1.04540947]
[1768331733033,1.04540947,3196.6,3195.5,1.18676327]
[1768331733537,1.04884631,3196.8,3195.7,1.04540947]
[1768331733728,0.00343684,3196.8,3196.1,1.18676327]
[1768331733932,0.15642,3198.0,3196.4,0.1413538]
[1768331734129,0.35487616,3197.9,3196.4,0.1413538]
[1768331734328,1.04540947,3197.4,3196.4,0.1413538]
[1768331734739,1.04540947,3197.8,3196.6,0.1413538]
[1768331735042,0.0025057,3197.8,3196.9,1.18200578]
[1768331735342,0.0025057,3197.8,3197.0,0.13659631]
[1768331735542,2.40340947,3198.4,3197.4,0.13659631]
[1768331735937,1.04540947,3198.4,3197.4,0.13659631]
[1768331736455,1.04540947,3198.2,3197.4,0.13659631]
[1768331736630,1.04540947,3198.2,3197.4,0.14006945]
[1768331736835,1.04881717,3198.4,3197.4,0.14006945]
[1768331737436,0.0034077,3198.4,3197.4,0.14006945]
[1768331738743,0.0034077,3198.4,3197.4,0.00347314]
[1768331738944,1.04412531,3198.1,3196.8,0.13659631]
[1768331739436,1.04412531,3197.8,3196.8,0.13659631]
[1768331739842,1.04412531,3198.1,3196.8,0.13659631]
[1768331740038,1.04412531,3198.1,3196.8,0.13962831]
[1768331740640,0.0034077,3198.4,3196.8,0.13962831]
[1768331740641,1.357,3198.0,3196.8,0.13962831]
[1768331741845,1.04412531,3197.8,3196.8,0.13962831]
[1768331742142,1.04412531,3197.8,3196.8,0.003032]
[1768331743449,1.04412531,3197.8,3196.8,0.13962831]
[1768331744844,1.357,3197.9,3196.8,0.13962831]
[1768331745246,1.357,3197.9,3196.8,0.29610831]
[1768331745451,1.357,3197.9,3196.9,0.13659631]
[1768331745847,1.04412531,3198.2,3196.9,0.13659631]
[1768331746149,1.356,3198.3,3197.0,0.13659631]
[1768331750854,1.04412531,3198.2,3196.9,0.15647]
[1768331751153,1.04412531,3197.9,3196.8,0.003032]
[1768331753050,1.04753301,3198.4,3196.9,0.13659631]
[1768331753250,1.356,3198.3,3197.1,0.13659631]
[1768331754549,1.356,3198.2,3197.1,0.13659631]
[1768331755653,0.0034077,3198.4,3197.1,0.13659631]
[1768331755854,1.355,3198.2,3197.1,0.13659631]
[1768331756155,1.355,3198.2,3197.0,0.29306631]
[1768331756156,2.39912531,3198.2,3197.0,0.29306631]
[1768331757460,0.0046938,3197.9,3197.0,0.29306631]
[1768331759158,1.04412531,3197.8,3197.0,0.15647]
[1768331761354,0.0046938,3197.9,3197.0,0.15647]
[1768331762261,1.3596938,3197.9,3197.0,0.15647]
[1768331762649,1.3596938,3197.9,3197.0,0.29306631]
[1768331762852,0.0046938,3197.9,3197.0,0.29306631]
[1768331763057,0.0046938,3197.9,3197.1,0.13659631]
[1768331764657,1.04881911,3197.9,3196.8,0.003032]
[1768331765462,1.04412531,3197.6,3196.8,0.003032]
[1768331765760,1.04412531,3197.3,3196.1,0.13278749]
[1768331766757,1.04412531,3197.3,3196.1,0.13555557]
[1768331767859,1.354,3197.3,3196.1,0.13555557]
[1768331768057,1.04881911,3197.9,3196.3,0.13278749]
[1768331768370,4.83870389,3197.8,3196.3,0.13278749]
[1768331768658,4.484,3197.8,3196.3,0.13278749]
[1768331768863,4.484,3197.8,3196.3,0.28928749]
[1768331769058,4.484,3197.8,3196.4,0.13278749]
[1768331769365,0.0046938,3197.9,3196.4,0.13278749]
[1768331769553,1.354,3197.7,3196.4,0.13278749]
[1768331769754,1.354,3197.7,3196.3,0.1565]
[1768331769755,0.0046938,3197.9,3196.7,0.13278749]
[1768331770071,1.354,3197.8,3196.7,0.13278749]
[1768331771061,1.354,3197.8,3196.9,0.0046938]
[1768331772770,1.354,3197.8,3196.3,0.13278749]
[1768331772955,1.354,3197.8,3196.1,0.00276808]
[1768331774468,1.354,3197.8,3196.1,0.13555557]
[1768331775667,2.08581027,3197.7,3196.1,0.00276808]
[1768331775861,0.35431388,3197.6,3196.1,0.00276808]
[1768331776067,0.15646,3197.3,3196.1,0.00276808]
[1768331776370,2.24228873,3197.2,3195.4,0.15655]
[1768331776573,1.88795639,3197.2,3195.4,0.15655]
[1768331777368,0.35398307,3197.1,3195.4,0.16057215]
[1768331777669,1.88795639,3197.2,3195.4,0.16057215]
[1768331777859,0.35400336,3197.1,3195.4,0.16057215]
[1768331778060,1.88795639,3197.2,3195.4,0.16057215]
[1768331778268,0.15646,3197.2,3195.4,0.16057215]
[1768331778473,4.484,3197.1,3195.4,0.16057215]
[1768331779863,0.51021397,3197.0,3195.4,0.00402215]
[1768331780067,0.15647,3197.0,3195.4,0.00402215]
[1768331780662,1.88798639,3196.7,3195.4,0.00402215]
[1768331780861,0.15649,3196.6,3194.9,0.15657]
[1768331781455,0.0046938,3196.1,3194.9,0.15657]
[1768331781658,1.355,3196.0,3194.9,0.15657]
[1768331781855,1.355,3196.0,3194.9,0.15879623]
[1768331783075,1.355,3196.0,3194.9,0.30113848]
[1768331783268,1.355,3196.0,3195.0,0.14234225]
[1768331784174,0.00781232,3196.1,3195.0,0.14234225]
[1768331784367,1.36281232,3196.1,3195.0,0.14234225]
[1768331785065,1.36281232,3196.1,3194.9,0.00222623]
[1768331785573,1.73149639,3195.7,3193.9,0.14234225]
[1768331785867,0.14194481,3195.1,3192.6,11.35396367]
[1768331786070,1.8734412,3194.7,3192.6,11.35396367]
[1768331786261,0.14194481,3194.6,3192.6,11.35396367]
[1768331786464,0.15659,3194.5,3193.2,0.00277907]
[1768331786680,0.0046938,3194.3,3193.2,0.00277907]
[1768331787064,1.075,3194.2,3193.2,0.00277907]
[1768331787665,1.355,3194.2,3193.2,0.00277907]
[1768331788065,0.0046938,3194.3,3193.2,0.00277907]
[1768331788266,1.355,3194.2,3193.2,0.00277907]
[1768331789480,0.0046938,3194.3,3193.2,0.15942907]
[1768331789670,1.355,3195.0,3193.5,0.14234225]
[1768331790575,0.13527862,3195.6,3193.6,0.14234225]
[1768331790779,3.132,3197.5,3193.2,0.00277907]
[1768331790780,3.132,3196.5,3194.7,0.15658]
[1768331791077,1.73461491,3196.1,3194.2,0.14234225]
[1768331791278,0.0046938,3194.7,3194.2,0.14234225]
[1768331791775,1.87018982,3196.1,3194.2,0.14234225]
[1768331791984,0.00311852,3196.1,3194.4,0.14234225]
[1768331792681,0.00311852,3196.1,3194.6,0.29893225]
[1768331793380,0.00311852,3196.1,3194.8,0.29892225]
[1768331793576,0.00311852,3196.1,3195.0,0.29891225]
[1768331793882,3.132,3196.9,3195.3,0.14234225]
[1768331794268,1.73149639,3198.0,3195.6,0.14234225]
[1768331794474,4.487,3197.9,3195.6,0.14234225]
[1768331794668,0.0046938,3197.1,3196.1,0.29885225]
[1768331794975,0.00700915,3197.1,3196.2,0.14108774]
[1768331795581,0.00700915,3197.1,3196.3,0.14108774]
[1768331795773,0.13917088,3198.6,3196.4,0.14108774]
[1768331795975,3.132,3198.2,3196.4,0.14108774]
[1768331796575,0.13917088,3198.2,3196.3,0.0046938]
[1768331796880,0.00251272,3198.2,3196.3,0.14578154]
[1768331797079,0.00251272,3198.2,3196.6,0.14108774]
[1768331797278,0.00251272,3198.2,3196.7,0.14108774]
[1768331797583,1.52744866,3198.1,3196.7,0.14108774]
[1768331798081,0.00251272,3198.2,3196.7,0.14108774]
[1768331798280,0.00251272,3198.2,3196.9,0.14108774]
[1768331798482,0.00251272,3198.2,3197.0,0.14108774]
[1768331798987,0.00251272,3198.2,3196.9,0.15646]
[1768331799279,1.52744866,3198.0,3196.5,0.14108774]
[1768331799485,1.356,3197.9,3196.5,0.14108774]
[1768331800082,1.52744866,3198.0,3196.5,0.14108774]
[1768331800287,1.343,3198.0,3196.6,0.14108774]
[1768331800589,1.343,3198.0,3196.7,0.14108774]
[1768331800783,1.52744866,3198.0,3196.7,0.14108774]
[1768331800988,1.52744866,3197.6,3196.3,0.0046938]
[1768331803590,1.52744866,3196.8,3195.4,0.15653]
[1768331803892,2.88344866,3196.8,3195.4,0.15653]
[1768331804591,2.88344866,3196.8,3195.4,0.15878943]
[1768331804796,1.52744866,3197.2,3195.6,0.14108774]
[1768331805093,1.356,3197.1,3195.8,0.14108774]
[1768331805588,1.356,3197.1,3195.7,0.15652]
[1768331806285,1.52744866,3196.8,3195.4,0.00225943]
[1768331808694,0.0046938,3196.4,3195.4,0.00225943]
[1768331808994,0.0046938,3196.4,3195.6,0.14108774]
[1768331811197,0.0046938,3196.4,3195.6,0.29760774]
[1768331811791,0.0046938,3196.4,3195.7,0.14108774]
[1768331813597,0.15642,3197.7,3195.9,0.14108774]
[1768331813804,1.355,3197.6,3195.9,0.14108774]
[1768331814494,1.52744866,3197.8,3196.0,0.29758774]
[1768331814792,1.52744866,3197.8,3196.2,0.29757774]
[1768331814987,1.66661954,3198.1,3196.3,0.15649]
[1768331815299,4.486,3198.0,3196.4,0.15648]
[1768331815491,1.52744866,3198.1,3196.6,0.15647]
[1768331815687,1.356,3198.1,3196.6,0.29755774]
[1768331818899,2.88344866,3198.1,3196.6,0.15647]
[1768331819396,2.88344866,3198.1,3196.7,0.15647]
[1768331820800,1.52744866,3197.7,3196.0,0.14108774]
[1768331821102,1.52744866,3197.3,3196.2,0.15649]
[1768331821290,1.52744866,3197.7,3196.2,0.15649]
[1768331821490,0.00251272,3198.2,3196.7,0.15647]
[1768331821688,1.355,3198.1,3196.7,0.15647]
[1768331822807,1.52744866,3197.9,3196.1,0.29758774]
[1768331822999,1.66661954,3197.9,3196.2,0.15649]
[1768331824207,0.13917088,3197.8,3196.2,0.15649]
[1768331824909,1.52744866,3197.5,3196.2,0.15649]
[1768331825399,1.355,3198.1,3195.7,0.0046938]
[1768331825400,1.52744866,3197.0,3195.7,0.0046938]
[1768331825614,1.355,3196.9,3195.7,0.0046938]
[1768331825799,1.52744866,3196.6,3195.4,0.00225943]
[1768331829405,1.52744866,3196.6,3195.7,0.0046938]
[1768331829709,0.0046938,3196.7,3195.7,0.0046938]
[1768331832811,0.0046938,3196.7,3195.4,0.00225943]
[1768331833017,1.52744866,3196.5,3195.4,0.00225943]
[1768331833912,1.354,3196.4,3195.4,0.00225943]
[1768331834111,1.354,3196.4,3194.4,0.3235472]
[1768331834312,1.53398149,3196.4,3194.4,0.3235472]
[1768331834716,1.53398149,3196.4,3194.5,0.15658]
[1768331835214,1.53398149,3196.4,3194.5,0.16053047]
[1768331835215,1.52744866,3196.1,3194.5,0.16053047]
[1768331836611,1.52744866,3196.1,3194.5,0.32749767]
[1768331837616,1.52744866,3196.1,3194.6,0.15657]
[1768331837817,1.354,3196.0,3194.7,0.15657]
[1768331838313,1.354,3196.1,3194.8,0.15656]
[1768331839617,0.0046938,3196.7,3195.1,0.18107001]
[1768331839910,0.0046938,3196.7,3195.0,1.52744866]
[1768331839911,1.3586938,3196.7,3195.5,0.33760001]
[1768331840917,1.3586938,3196.7,3195.5,0.15653]
[1768331841117,1.3586938,3196.7,3195.0,0.18107001]
[1768331841118,2.88614246,3196.7,3195.0,0.18107001]
[1768331841519,3.07800034,3196.7,3195.0,0.18107001]
[1768331841720,0.19185788,3196.6,3194.8,0.15656]
[1768331842611,1.71930654,3196.3,3194.8,0.15656]
[1768331845325,1.52744866,3196.3,3194.8,0.15656]
[1768331845520,1.354,3196.2,3194.8,0.15656]
[1768331845718,1.354,3196.2,3194.9,0.18107001]
[1768331846022,1.354,3196.2,3194.8,0.15656]
[1768331848122,1.72400034,3196.7,3195.0,0.33762001]
[1768331848325,1.72400034,3196.7,3194.5,1.53139913]
[1768331848326,0.0046938,3196.7,3195.1,0.18107001]
[1768331848626,1.354,3196.6,3195.1,0.18107001]
[1768331848818,1.354,3196.6,3195.2,0.15654]
[1768331850126,0.0046938,3196.7,3195.3,0.15654]
[1768331851826,0.0046938,3196.7,3195.5,0.15652]
[1768331858019,0.0046938,3196.7,3195.8,0.00469379]
[1768331858623,0.0046938,3196.7,3195.8,0.16120379]
[1768331858926,0.0046938,3196.7,3195.9,0.34526239]
[1768331859426,0.0046938,3196.7,3195.9,0.1565]
[1768331863136,0.15643,3197.6,3196.1,0.18876239]
[1768331863326,4.483,3197.5,3196.1,0.18876239]
[1768331863826,4.483,3197.5,3196.0,0.1565]
[1768331863827,0.15891272,3198.2,3196.4,0.18876239]
[1768331864031,4.83709131,3198.1,3196.4,0.18876239]
[1768331864232,0.35409131,3198.0,3196.4,0.18876239]
[1768331864428,0.0046938,3197.6,3196.4,0.18876239]
[1768331868937,0.0046938,3197.6,3196.3,0.15649]
[1768331869435,0.0046938,3197.6,3195.9,0.18876239]
[1768331869436,0.20005629,3197.6,3195.9,0.18876239]
[1768331869739,0.19536249,3197.5,3195.8,0.16120379]
[1768331870642,0.19536249,3197.5,3195.8,0.34996618]
[1768331871351,0.0046938,3197.6,3196.4,0.15648]
[1768331871540,0.0046938,3197.6,3196.4,0.18876239]
[1768331871844,0.0046938,3197.6,3196.5,0.15648]
[1768331872538,0.0046938,3197.6,3196.0,0.34526239]
[1768331875950,0.0046938,3197.6,3196.1,0.18876239]
[1768331877252,1.352,3197.5,3196.1,0.18876239]
[1768331877648,1.352,3197.5,3196.2,0.15649]
[1768331877955,1.352,3197.5,3196.1,0.18876239]
[1768331878252,1.352,3197.5,3195.8,0.00469379]
[1768331879446,1.50843,3197.5,3195.8,0.00469379]
[1768331879750,0.19536249,3197.4,3195.8,0.00469379]
[1768331879949,0.3540891,3197.3,3195.8,0.00469379]
[1768331880249,0.19536249,3197.4,3195.8,0.00469379]
[1768331880451,0.15645,3197.1,3195.8,0.00469379]
[1768331880846,0.19536249,3196.9,3195.1,0.34531239]
[1768331881151,2.08639811,3196.8,3195.1,0.34531239]
[1768331881350,0.35412838,3196.7,3195.1,0.34531239]
[1768331881552,1.92763222,3196.8,3195.1,0.34531239]
[1768331881744,0.35414578,3196.7,3195.1,0.34531239]
[1768331881941,1.92763222,3196.8,3195.1,0.15655]
[1768331882147,0.19536249,3196.6,3194.7,0.18876239]
[1768331882340,0.51060835,3196.7,3194.7,0.18876239]
[1768331882341,0.19536249,3196.4,3194.7,0.18876239]
[1768331882545,0.19536249,3196.2,3194.6,0.15657]
[1768331882753,0.0046938,3195.9,3194.6,0.15657]
[1768331882947,0.00833285,3195.9,3194.7,0.18876239]
[1768331883146,1.351,3195.8,3194.7,0.18876239]
[1768331884251,0.00833285,3195.9,3194.8,0.18876239]
[1768331884659,0.00833285,3195.9,3194.7,0.15657]
[1768331885756,0.00833285,3195.9,3194.7,0.38553245]
[1768331886257,0.00833285,3195.9,3194.7,0.15657]
[1768331886555,0.00833285,3195.9,3194.8,0.22896245]
[1768331886948,0.00833285,3195.9,3195.0,0.22896245]
[1768331887159,1.352,3196.3,3195.1,0.22896245]
[1768331888160,0.00321596,3196.3,3195.1,0.22896245]
[1768331888360,0.0046938,3196.0,3195.1,0.22896245]
[1768331889070,0.0046938,3196.0,3194.7,0.22896245]
[1768331889260,0.0046938,3196.0,3194.5,0.00395047]
[1768331891061,0.1611938,3196.0,3194.5,0.00395047]
[1768331891266,0.37584893,3195.8,3194.5,0.00395047]
[1768331891462,2.10812866,3195.7,3194.5,0.00395047]
[1768331891856,3.131,3195.8,3194.5,0.23291292]
[1768331892061,1.352,3195.7,3194.5,0.23291292]
[1768331893669,1.352,3195.9,3194.6,0.22896245]
[1768331895064,1.352,3195.9,3194.7,0.38553245]
[1768331895273,1.352,3195.9,3194.8,0.22896245]
[1768331895957,0.0046938,3196.0,3194.8,0.22896245]
[1768331896157,1.352,3195.9,3194.8,0.22896245]
[1768331896358,0.0046938,3196.0,3194.9,0.38814207]
[1768331896565,0.0046938,3196.0,3194.9,0.23158207]
[1768331896770,0.0046938,3196.0,3195.0,0.38813207]
[1768331899577,0.0046938,3196.0,3195.0,0.15655]
[1768331901181,0.0046938,3196.0,3194.5,0.23553254]
[1768331901385,0.0046938,3196.0,3194.5,0.39211254]
[1768331903385,0.0046938,3196.0,3194.6,0.23158207]
[1768331903675,0.0046938,3196.0,3194.9,0.23158207]
[1768331903880,1.3556938,3196.0,3195.0,0.23158207]
[1768331905886,1.3556938,3196.0,3195.0,0.38813207]
[1768331906791,1.3556938,3196.0,3194.6,0.23158207]
[1768331908289,1.3556938,3196.0,3194.7,0.15656]
[1768331909593,1.3556938,3196.0,3194.7,0.38814207]
[1768331911494,1.3556938,3196.0,3194.8,0.15656]
[1768331912196,1.35,3195.9,3194.8,0.15656]
[1768331914905,1.35,3195.9,3194.5,0.00395047]
[1768331915208,0.59405047,3195.8,3194.5,0.00395047]
[1768331915507,0.23944104,3195.8,3194.5,0.00395047]
[1768331915813,0.23944104,3195.6,3194.5,0.00395047]
[1768331916307,0.23944104,3195.6,3193.8,0.15661]
[1768331917307,0.23944104,3195.6,3193.8,0.15895164]
[1768331918106,0.23944104,3195.6,3193.9,0.22493938]
[1768331918304,0.15652,3195.7,3193.9,0.22493938]
[1768331918506,4.482,3195.6,3194.3,0.22493938]
[1768331918704,0.24413484,3196.0,3194.3,0.38151938]
[1768331919003,0.24413484,3196.0,3194.6,0.22493938]
[1768331919004,4.482,3195.9,3194.6,0.22493938]
[1768331919202,1.35,3195.8,3194.6,0.22493938]
[1768331919507,1.35,3195.8,3194.6,0.38150938]
[1768331920210,1.35,3195.8,3194.7,0.22493938]
[1768331923012,1.35,3195.8,3194.6,0.15657]
[1768331923214,1.35,3195.8,3194.2,0.22493938]
[1768331923215,1.5295134,3195.5,3194.2,0.22493938]
[1768331924214,1.5295134,3195.5,3194.2,0.38152938]
[1768331927115,1.5295134,3195.5,3194.3,0.15658]
[1768331927316,0.0046938,3196.0,3194.3,0.38151938]
[1768331927521,4.83527673,3195.9,3194.3,0.38151938]
[1768331927708,4.481,3195.9,3194.3,0.38151938]
[1768331928013,1.5295134,3195.7,3194.3,0.15658]
[1768331928316,1.5295134,3195.7,3194.3,0.38151938]
[1768331928516,1.349,3195.6,3194.4,0.15658]
[1768331932113,1.5295134,3195.3,3193.8,0.38389102]
[1768331932314,1.5295134,3195.3,3193.9,0.15661]
[1768331933909,0.23944104,3195.6,3193.9,0.15661]
[1768331934114,1.76895444,3195.6,3194.0,0.38153938]
[1768331934422,4.481,3195.5,3194.0,0.38153938]
[1768331935917,1.77364824,3196.0,3194.2,0.15659]
[1768331936220,4.83532973,3195.9,3194.2,0.15659]
[1768331936413,0.35432973,3195.8,3194.2,0.15659]
[1768331937209,0.35432973,3195.8,3194.3,0.38152938]
[1768331937414,1.349,3195.7,3194.4,0.22493938]
[1768331938110,1.349,3195.6,3194.4,0.22493938]
[1768331938517,1.5342072,3196.0,3194.4,0.38151938]
[1768331938716,0.0046938,3196.0,3194.7,0.15657]
[1768331939021,1.349,3195.9,3194.7,0.38150938]
[1768331939321,1.3536938,3196.0,3194.7,0.22493938]
[1768331939823,1.3536938,3196.0,3195.1,0.15655]
[1768331941322,0.0046938,3196.0,3194.7,0.22493938]
[1768331941521,0.00321596,3196.3,3195.5,0.38146938]
[1768331941824,3.132,3197.0,3196.0,0.22493938]
[1768331942126,1.349,3197.0,3196.0,0.38143938]
[1768331942624,1.35252754,3197.0,3196.0,0.38143938]
[1768331943224,0.0046938,3196.8,3196.1,0.38143938]
[1768331943419,0.0046938,3196.8,3196.1,0.38533925]
[1768331945133,3.132,3197.9,3196.4,0.15648]
[1768331945331,1.175,3197.8,3196.4,0.15648]
[1768331946024,1.17740676,3197.8,3196.4,0.15648]
[1768331948022,1.75852941,3197.6,3196.1,0.00859367]
[1768331950128,1.348,3197.7,3196.6,0.15647]
[1768331951831,0.00240676,3197.8,3196.6,0.15647]
[1768331952032,1.347,3197.7,3196.6,0.15647]
[1768331952332,0.00240676,3197.8,3196.8,0.38086833]
[1768331955429,0.00240676,3197.8,3197.0,0.15645]
[1768331955625,0.00240676,3197.8,3197.0,0.38085833]
[1768331958939,0.00240676,3197.8,3197.1,0.38239934]
[1768331959232,1.5295134,3199.0,3197.3,0.15644]
[1768331959427,0.24119,3198.9,3197.9,0.15641]
[1768331959831,0.24119,3198.9,3198.1,0.0046938]
[1768331960028,0.2443618,3198.9,3198.1,0.0046938]
[1768331968340,0.2443618,3198.9,3198.1,0.23064314]
[1768331969528,0.2443618,3198.9,3198.3,0.15639]
[1768331971039,0.2443618,3198.9,3198.4,0.15638]
[1768331971241,0.2443618,3198.9,3198.4,0.15983948]
[1768331971445,1.345,3199.6,3198.4,0.15983948]
[1768331972440,1.34848855,3199.6,3198.4,0.15983948]
[1768331972641,0.00348855,3199.6,3198.4,0.22940882]
[1768331972840,0.00348855,3199.6,3198.9,0.15636]
[1768331973643,0.23026399,3200.9,3199.4,0.15633]
[1768331974134,1.75977739,3200.7,3199.4,0.15633]
[1768331974343,0.23026399,3200.6,3199.8,0.0046938]
[1768331974544,0.0046938,3200.4,3199.4,0.15633]
[1768331976451,0.0046938,3200.4,3198.8,0.38231934]
[1768331976747,1.5295134,3200.3,3198.8,0.38231934]
[1768331976943,1.5295134,3199.9,3198.8,0.15637]
[1768331977247,1.76367306,3199.9,3198.4,0.00345948]
[1768331977947,1.76367306,3199.9,3198.8,0.0046938]
[1768331980450,0.23415966,3199.8,3198.8,0.0046938]
[1768331981350,1.345,3200.0,3198.8,0.0046938]